Cogmind - Beta 11 X7 @@@ ROGUE MODE // 2021.09.25 @ 21:18:58 Player: Plexion Result: Destroyed by 8R-AWN with 8R-AWN's Boregun Performance ------------- Evolutions (1) 500 Regions Visited (5) 1000 Robots Destroyed (54) 270 Value Destroyed (1249) 1249 Prototype IDs (27) 540 Alien Tech Used (0) 0 Bonus (319) 319 TOTAL SCORE: 3878 Bonus ------- High Alert Combat Kills 19 Aligned with FarCom 300 Cogmind --------- Core Integrity 0/400 Matter 97/300 Energy 100/100 System Corruption 0% Temperature Cool (0) Movement Core (450) Ox8 Location -9/Exiles Parts ------- > --- POWER (1) -------- (None) > --- PROPULSION (2) --- (None) > --- UTILITY (4) ------ Large Storage Unit Melee Analysis Suite > --- WEAPON (2) ------- Axe Axe > --- INVENTORY (15) --- Heavy Assault Rifle Heavy Assault Rifle Heavy Assault Rifle Improved Assault Rifle Improved Assault Rifle Rocket Launcher Plasma Cutter Plasma Cutter Peak State ------------ > --- POWER ------------ Improved Ion Engine > --- PROPULSION ------- Light Treads Light Treads > --- UTILITY ---------- Improved Heat Sink Large Storage Unit Cloak of Protection Light Armor Plating > --- WEAPON ----------- Heavy Assault Rifle Heavy Assault Rifle > --- INVENTORY -------- Ion Engine Light Treads Light Treads Melee Analysis Suite Light Armor Plating Medium Armor Plating Heavy Assault Rifle Improved Assault Rifle Improved Assault Rifle Grenade Launcher Rocket Launcher Plasma Cutter Plasma Cutter Axe Axe [Rating: 24] Favorites ----------- Power Improved Ion Engine Engine Improved Ion Engine Propulsion Light Treads Treads Light Treads Flight Unit Improved Flight Unit Utility Large Storage Unit Device Heat Sink Storage Large Storage Unit Processor Melee Analysis Suite Protection Light Armor Plating Weapon Heavy Assault Rifle Energy Gun Medium Laser Energy Cannon Advanced Beam Cannon Ballistic Gun Heavy Assault Rifle Launcher Grenade Launcher Special Weapon Plasma Cutter Impact Weapon Makeshift Hammer Slashing Weapon Axe Build | -11 -10 -10 -9 -9 -9 ------- Run | Scr Mat Min Mat Min Exi Slots Evolved 2 | . . . 2 . . Power . | . . . . . . Propulsion . | . . . . . . Utility 2 | . . . 2 . . Weapon . | . . . . . . Parts Attached 62 | 6 3 2 40 . 11 Power 3 | 1 . . 2 . . Engine 3 | 1 . . 2 . . Core . | . . . . . . Reactor . | . . . . . . Propulsion 11 | 2 . . 7 . 2 Treads 10 | 2 . . 6 . 2 Leg . | . . . . . . Wheel . | . . . . . . Hover . | . . . . . . Flight 1 | . . . 1 . . Utility 19 | 1 3 1 10 . 4 Device 8 | . 1 . 6 . 1 Storage 3 | 1 2 . . . . Processor 1 | . . . . . 1 Hackware . | . . . . . . Protection 7 | . . 1 4 . 2 Artifact . | . . . . . . Weapon 29 | 2 . 1 21 . 5 Energy Gun 2 | . . . 2 . . Energy Cannon 6 | . . . 6 . . Ballistic Gun 10 | 2 . . 8 . . Ballistic Cannon . | . . . . . . Launcher 5 | . . 1 3 . 1 Special Weapon 1 | . . . . . 1 Impact Weapon 1 | . . . 1 . . Slashing Weapon 4 | . . . 1 . 3 Piercing Weapon . | . . . . . . Special Melee Weapon . | . . . . . . Unidentified Prototypes 4 | . . . 4 . . Parts Lost 15 | . . 1 5 . 9 Power 1 | . . . . . 1 Propulsion 6 | . . . 2 . 4 Utility 7 | . . . 3 . 4 Weapon 1 | . . 1 . . . Highest Loss Streak 6 | . . 1 1 . 6 Average Slot Usage (%) 98 | . 98 99 98 100 97 Engine 11 | . 14 14 11 11 9 Treads 23 | . 28 28 21 22 21 Device 14 | . 12 1 19 22 15 Storage 11 | . 14 14 11 11 11 Processor 1 | . . . . . 5 Protection 10 | . . 13 12 11 10 Energy Cannon 5 | . . . 13 . . Ballistic Gun 14 | . 28 16 5 22 19 Launcher 2 | . . 11 . . . Naked Turns . | . . . . . . Heaviest Build 45 | 13 29 32 44 38 45 Greatest Support 40 | 40 40 40 40 40 40 Greatest Overweight (x) 1 | . . . 1 . 1 Average Overweight (x) . | . . . . . . Largest Inventory Capacity 15 | 8 15 15 15 15 15 Average Capacity 14 | 7 9 15 15 15 15 Most Carried 15 | 2 10 14 15 15 15 Average Carried 12 | 1 4 11 14 15 13 Final Capacity 15 | 8 15 15 15 15 15 Final Carried 15 | 2 10 14 15 15 8 Class Distribution -------------------- 51% | Scavenger-Mutant 48% | Mutant Dominant Class ---------------- Mutant | -10/Materials Mutant | -10/Mines Scavenger-Mutant | -9/Materials Scavenger-Mutant | -9/Mines Scavenger-Mutant | -9/Exiles Resources | -11 -10 -10 -9 -9 -9 ----------- Run | Scr Mat Min Mat Min Exi Matter Collected 1014 | 257 87 75 595 . . Remotely . | . . . . . . Salvage Created 1768 | . 164 73 1529 . 2 Parts 114 | . 19 10 85 . . Haulers Intercepted 4 | . 1 . 3 . . Recyclers Shooed 1 | . . . 1 . . Parts Field Recycled . | . . . . . . Retrieved Matter . | . . . . . . Parts Self-Destructed . | . . . . . . Prevented . | . . . . . . Kills | -11 -10 -10 -9 -9 -9 ------- Run | Scr Mat Min Mat Min Exi Combat Hostiles Destroyed 41 | . 3 4 31 . 3 Guns 10 | . 3 1 6 . . Cannons 13 | . . . 13 . . AOE 16 | . . 3 10 . 3 Classes Destroyed 10 | . 4 4 2 . . Worker 4 | . . 1 3 . . Builder 3 | . 1 . 2 . . Tunneler 1 | . . 1 . . . Hauler 4 | . 1 . 3 . . Recycler 2 | . . . 2 . . Watcher 3 | . 1 . 2 . . Swarmer 10 | . . 3 7 . . Grunt 19 | . 3 . 16 . . Sentry 8 | . . . 8 . . Assembled 4 | . . 1 . . 3 Best Kill Streak 4 | . 3 3 4 . 3 Combat Bots Only 4 | . 2 3 4 . 3 Max Kills in Single Turn 3 | . 1 3 3 . 1 Gunslinging . | . . . . . . Exploded 3 | . . 3 3 . 1 Melee . | . . . . . . Uniques/NPCs Destroyed . | . . . . . . Combat | -11 -10 -10 -9 -9 -9 -------- Run | Scr Mat Min Mat Min Exi Damage Taken 3054 | . 118 275 1270 . 1391 Core 478 | . . 72 137 . 269 Absorbed by Shields . | . . . . . . Core Remaining (%) 85 | 100 . 71 . . . Volleys Fired 136 | . 16 8 96 . 16 Largest 2 | . 2 2 2 . 1 Hottest 136 | . 40 40 136 . 33 Shots Fired 238 | . 32 13 177 . 16 Gun 119 | . 32 10 76 . 1 Cannon 86 | . . . 86 . . Launcher 26 | . . 3 15 . 8 Special 7 | . . . . . 7 Kinetic 82 | . 32 10 39 . 1 Thermal 130 | . . . 123 . 7 Explosive 26 | . . 3 15 . 8 Electromagnetic . | . . . . . . Robot Hit Streak 13 | . 9 7 13 . 3 Robot Miss Streak 4 | . 2 1 4 . 2 Penetration Max . | . . . . . . Secondary Targets . | . . . . . . Shots Hit Robots 175 | . 19 8 118 . 30 Core Hits 86 | . 10 8 57 . 11 Critical Kills 3 | . . 1 2 . . Critical Parts Destroyed . | . . . . . . Critical Strikes 8 | . . 1 6 . 1 Burn 4 | . . . 4 . . Meltdown 1 | . . . 1 . . Destroy 2 | . . 1 1 . . Sever 1 | . . . . . 1 Melee Attacks 33 | . . . 3 . 30 Impact 1 | . . . 1 . . Slashing 32 | . . . 2 . 30 Piercing . | . . . . . . Sneak Attacks . | . . . . . . Combat Hostiles . | . . . . . . Follow-up Attacks 4 | . . . . . 4 Damage Inflicted 4594 | . 210 250 2964 . 1170 Guns 1016 | . 210 77 729 . . Cannons 1215 | . . . 1215 . . Explosions 1495 | . . 173 1020 . 302 Melee 864 | . . . . . 864 Ramming . | . . . . . . Kinetic 689 | . 210 77 402 . . Thermal 1546 | . . . 1542 . 4 Explosive 1495 | . . 173 1020 . 302 Electromagnetic . | . . . . . . Impact . | . . . . . . Slashing 864 | . . . . . 864 Piercing . | . . . . . . Highest Corruption . | . . . . . . Average Corruption . | . . . . . . Corruption Purged . | . . . . . . Overload Shots . | . . . . . . Overflow Damage 106 | . . . 71 . 35 Projectiles 11 | . . . 11 . . Explosions 95 | . . . 60 . 35 Melee . | . . . . . . Knockbacks . | . . . . . . Impact . | . . . . . . Kinetic . | . . . . . . Secondary . | . . . . . . Self-Inflicted Damage 158 | . . 98 15 . 45 Shots 7 | . . 3 1 . 3 Rammed . | . . . . . . Targets Rammed . | . . . . . . Kicked . | . . . . . . Crushed . | . . . . . . Highest Temperature 249 | . . 35 249 . . Average Temperature 56 | . . 14 58 . . Received Heat Transfer 595 | . 66 40 489 . . Siege Activations . | . . . . . . Robots Corrupted . | . . . . . . Combat Hostiles . | . . . . . . Parts Fried . | . . . . . . Impact Corruptions . | . . . . . . Robots Melted 3 | . . . 3 . . Combat Hostiles 2 | . . . 2 . . Parts Melted 4 | . . . 4 . . Heat Transferred 3477 | . . . 3441 . 36 Parts Sabotaged . | . . . . . . Parts Stolen . | . . . . . . Parts Stripped . | . . . . . . Power Chain Reactions . | . . . . . . Missiles Intercepted . | . . . . . . Alert | -11 -10 -10 -9 -9 -9 ------- Run | Scr Mat Min Mat Min Exi Peak Influence 456 | . 92 70 456 153 . Initial 153 | . . 35 27 153 . Average 160 | . 40 24 251 153 . Maximum Alert Level 2 | . . . 2 . . Low Security (%) 57 | 100 100 100 26 100 . Level 1 40 | . . . 69 . . Level 2 2 | . . . 4 . . Level 3 . | . . . . . . Level 4 . | . . . . . . Level 5 . | . . . . . . High Security . | . . . . . . Max Security . | . . . . . . Squads Dispatched 4 | . 1 . 3 . . Investigation 1 | . . . 1 . . Extermination . | . . . . . . Reinforcement 3 | . 1 . 2 . . Assault . | . . . . . . Garrison . | . . . . . . Intercept . | . . . . . . Construction Impeded . | . . . . . . Haulers Reinforced . | . . . . . . Active Scanning Responses . | . . . . . . Cargo Convoy Interrupts . | . . . . . . Stealth | -11 -10 -10 -9 -9 -9 --------- Run | Scr Mat Min Mat Min Exi Distress Signals 4 | . . . 4 . . Communications Jammed . | . . . . . . Distress Signals . | . . . . . . Times Spotted 74 | . 9 10 47 . 8 Peak Tracking Total 9 | . 2 5 4 . 9 Tactical Retreats 2 | . . 1 1 . . Traps | -11 -10 -10 -9 -9 -9 ------- Run | Scr Mat Min Mat Min Exi Traps Triggered 1 | . . . 1 . . Indirectly . | . . . . . . Trap Hack Attempts . | . . . . . . Triggered . | . . . . . . Disarmed . | . . . . . . Reprogrammed . | . . . . . . Reused . | . . . . . . Traps Extracted . | . . . . . . Installed . | . . . . . . Triggered . | . . . . . . Exploded 3 | . . . . . 3 Machines | -11 -10 -10 -9 -9 -9 ---------- Run | Scr Mat Min Mat Min Exi Machines Disabled 6 | . . . 1 . 5 Max in Single Turn 2 | . . . 1 . 2 Machines Sabotaged . | . . . . . . Garrisons Compromised . | . . . . . . Overloaded Fab Kills . | . . . . . . Fab Network Shutdowns . | . . . . . . Hacking | -11 -10 -10 -9 -9 -9 --------- Run | Scr Mat Min Mat Min Exi Machines Accessed 5 | . . 1 2 . 2 Terminals 2 | . . . 2 . . Fabricators . | . . . . . . Repair Stations . | . . . . . . Recycling Units . | . . . . . . Scanalyzers . | . . . . . . Garrison Access . | . . . . . . Total Hacks 5 | . . 1 2 . 2 Successful 3 | . . 1 . . 2 Failed 2 | . . . 2 . . Catastrophic 2 | . . . 2 . . Database Lockouts . | . . . . . . Manual 3 | . . . 2 . 1 Terminals 2 | . . . 2 . . Fabricators . | . . . . . . Repair Stations . | . . . . . . Recycling Units . | . . . . . . Scanalyzers . | . . . . . . Garrison Access . | . . . . . . Terminal Hacks 3 | . . 1 . . 2 Record 1 | . . . . . 1 Open Door 1 | . . 1 . . . EX-Prototype ID Bank 1 | . . . . . 1 Fabricator Hacks . | . . . . . . Repair Station Hacks . | . . . . . . Recycling Unit Hacks . | . . . . . . Scanalyzer . | . . . . . . Garrison Access Hacks . | . . . . . . Unauthorized Hacks . | . . . . . . Terminals . | . . . . . . Fabricators . | . . . . . . Repair Stations . | . . . . . . Recycling Units . | . . . . . . Scanalyzers . | . . . . . . Garrison Access . | . . . . . . Data Cores Recovered . | . . . . . . Used . | . . . . . . Hacking Detections 2 | . . . 2 . . Full Trace Events . | . . . . . . Feedback Events . | . . . . . . Feedback Blocked . | . . . . . . Robot Schematics Acquired . | . . . . . . Robots Built . | . . . . . . Matter . | . . . . . . Time . | . . . . . . Total Robot Build Rating . | . . . . . . Part Schematics Acquired . | . . . . . . Parts Built . | . . . . . . Matter . | . . . . . . Time . | . . . . . . Total Part Build Rating . | . . . . . . Parts Repaired . | . . . . . . Time . | . . . . . . Parts Recycled . | . . . . . . Recycled Matter . | . . . . . . Retrieved Matter . | . . . . . . Retrieved Components . | . . . . . . Parts Scanalyzed . | . . . . . . Part Schematics Acquired . | . . . . . . Parts Damaged . | . . . . . . Bothacking | -11 -10 -10 -9 -9 -9 ------------ Run | Scr Mat Min Mat Min Exi Used RIF Installer . | . . . . . . Robots Hacked . | . . . . . . Non-combat . | . . . . . . Combat . | . . . . . . Robot Hacks Applied . | . . . . . . Relay Couplers Released . | . . . . . . Robots Rewired . | . . . . . . Allies Hacked . | . . . . . . Hacks Repelled . | . . . . . . Allies | -11 -10 -10 -9 -9 -9 -------- Run | Scr Mat Min Mat Min Exi Total Allies . | . . . . . . Largest Group . | . . . . . . Highest-Rated Group . | . . . . . . Highest-Rated Ally . | . . . . . . Total Orders . | . . . . . . Ally Attacks . | . . . . . . Total Damage . | . . . . . . Kills . | . . . . . . Allies Corrupted . | . . . . . . Allies Melted . | . . . . . . Intel | -11 -10 -10 -9 -9 -9 ------- Run | Scr Mat Min Mat Min Exi Robot Analysis Total . | . . . . . . Derelict Logs Recovered 3 | . . 2 . 1 . Drone Launches . | . . . . . . Drone Recoveries . | . . . . . . Exploration | -11 -10 -10 -9 -9 -9 ------------- Run | Scr Mat Min Mat Min Exi Turns Passed 4803 | 74 611 700 2000 50 1368 Spaces Moved 2149 | 45 337 422 751 32 562 Core 7 | 7 . . . . . Treads 2142 | 38 337 422 751 32 562 Legs . | . . . . . . Wheels . | . . . . . . Hover . | . . . . . . Flight . | . . . . . . Fastest Speed 50 | 50 160 160 160 160 160 Average Speed 193 | 142 160 160 213 160 218 Slowest Speed 260 | 160 160 160 260 160 260 Overloaded Moves . | . . . . . . Propulsion Burnouts . | . . . . . . Robots Hopped . | . . . . . . Cave-ins Triggered . | . . . . . . Exploration Rate (%) 50 | 4 59 75 82 14 70 Regions Visited 5 Branch Regions 3 Pre-discovered Areas 2 | . . 1 . . 1 Known Exits Taken 1 | . . 1 . . . Unknown Exits Taken 4 | 1 1 . 1 1 . Scrap Searched 1 | . . 1 . . . Spaces Dug 2 | . . . 2 . . Terrain Destroyed 105 | . . 29 30 . 46 Melee 2 | . . . 2 . . Projectile . | . . . . . . AOE 103 | . . 29 28 . 46 Terrain Rammed . | . . . . . . Walls Destroyed . | . . . . . . Machines Disabled . | . . . . . . Actions | -11 -10 -10 -9 -9 -9 --------- Run | Scr Mat Min Mat Min Exi Total 2501 | 52 380 434 970 31 634 Wait 56 | . 15 . 32 . 9 Move 2144 | 44 336 421 750 31 562 Hop . | . . . . . . Pick Up 35 | 2 8 3 19 . 3 Fast Attach 13 | 6 1 . 5 . 1 Attach 15 | . . . 11 . 4 Detach 5 | . . . 5 . . Swap 34 | . 2 2 24 . 6 Drop 34 | . 2 . 25 . 7 Fire 136 | . 16 8 96 . 16 Melee 29 | . . . 3 . 26 Ram . | . . . . . . Kick . | . . . . . . Crush . | . . . . . . Escape Stasis . | . . . . . . Rewire . | . . . . . . Trap . | . . . . . . Miscellaneous . | . . . . . . Route ------- -11/Scrapyard -10/Materials (discovered 3 exits: *Mat x2 / *Min) -10/Mines (discovered 2 exits: *Mat x2) -9/Materials (discovered 6 exits: [*Mat x3] / [*Min] / [*Sto x2]) -9/Mines -9/Exiles (discovered 1 exit: [*Min]) History --------- Turn | Location | Event 7 | -11/Scrapyard | Discovered new exit (range 15) 75 | -11/Scrapyard | Entered Materials 177 | -10/Materials | Discovered new exit (range 15) 273 | -10/Materials | Discovered new exit (range 9) 317 | -10/Materials | Build established: Mutant 405 | -10/Materials | Discovered new exit (range 13) 686 | -10/Materials | Entered Mines 754 | -10/Mines | Met a Derelict bent on vengeance 786 | -10/Mines | Assembled infested the area 791 | -10/Mines | Assisted by a Guerilla fighting off Assembled 932 | -10/Mines | Found the Drone Emporium 940 | -10/Mines | Found Prototype Device 1319 | -10/Mines | Identified exit to Materials 1319 | -10/Mines | Discovered exit to Materials (range 10) 1343 | -10/Mines | A weapon hastily lodged in a ceiling crevice suddenly fell to the ground 1386 | -10/Mines | Entered Materials 1386 | -9/Materials | Evolved 2 slots: Utility x2 1386 | -9/Materials | Identified Decoy Drone Bay 1778 | -9/Materials | Discovered new exit (range 7) 2184 | -9/Materials | Discovered new exit (range 13) 2305 | -9/Materials | Build established: Scavenger-Mutant 2309 | -9/Materials | Discovered new exit (range 15) 2610 | -9/Materials | Discovered new exit (range 15) 2806 | -9/Materials | Discovered new exit (range 9) 2929 | -9/Materials | Build established: Mutant 3342 | -9/Materials | Discovered new exit (range 12) 3385 | -9/Materials | Build established: Scavenger-Mutant 3386 | -9/Materials | Entered Mines 3394 | -9/Mines | Learned Materials trap positions 3428 | -9/Mines | Deemed a non-threat by the Exiles lab entrance 3430 | -9/Mines | Discovered new exit (range 5) 3436 | -9/Mines | Entered Exiles 3475 | -9/Exiles | Met 8R-AWN 3502 | -9/Exiles | Met EX-HEX 3579 | -9/Exiles | Met EX-DEC 3608 | -9/Exiles | Learned location of Zion (-7) 3720 | -9/Exiles | Met EX-BIN 3739 | -9/Exiles | Aligned with FarCom system 3740 | -9/Exiles | Given EX-Vault access code 3787 | -9/Exiles | Opened EX-Vault 3797 | -9/Exiles | Found Cloak of Protection 3850 | -9/Exiles | Warned to stay clear of 0b10 Research branches 4103 | -9/Exiles | Discovered new exit (range 10) 4616 | -9/Exiles | Attacked by the Exiles 4718 | -9/Exiles | Lost 3 parts (1p1n1u) 4762 | -9/Exiles | Core integrity fell below 50% 4792 | -9/Exiles | Core integrity fell below 20% 4804 | -9/Exiles | Destroyed by 8R-AWN with 8R-AWN's Boregun Last Messages --------------- 04754_ Penetrated by HV Slug. 04757_ Axe follow-up attack on 8R-AWN. 04758_ Penetrated by HV Slug. 04760_ Destroyed Prototype Protection. 04761_ Penetrated by HV Slug. 04766_ HV Slug penetrates Earth. 04770_ Penetrated by HV Slug. 04771_ Earth collapses. 04774_ Penetrated by HV Slug. 04774_ Critical hit (Destroy). 04774_ Lgt. Treads destroyed. 04778_ Penetrated by HV Slug. 04779_ Axe follow-up attack on 8R-AWN. 04783_ Penetrated by HV Slug. 04787_ The unstable cave ceiling collapses. 04787_ Penetrated by HV Slug. 04787_ HV Slug penetrates Earth. 04788_ Axe follow-up attack on 8R-AWN. 04791_ 8R-AWN Prototype Device severed. 04791_ Penetrated by HV Slug. Map ----- +----------------------------------------------------+ | ?????????????????????????????????????????????????? | | ?????????????????????????????????????????????????? | | ?????????????????????????????????????????????????? | | ?????????????????????????????????????????????????? | | ?????????????????????????????????????????????????? | | ?????????????????????????????????????????????????? | | ?????????????????????????????????????????????????? | | ?????????????????????????????????????????????????? | | ?????????????????????????????????????????????????? | | ???????????????????????????????????????????????### | | ???????????????????????????????????????????????""" | | ##????????????????????????????????????????????"""" | | # ??????????????????????????????????????????#""X" | | ??????????????????????????????????????????#" | | < ?????????????????????????????????????????#" | | ?????????????????????????????????????????#"""" | | ?????????????????????????????????????????#"## | | ????????????????????????????????????????????? | | # ???????????????????????????????????????????? | | # ???????????????????????????????????????????? | | ?# ?????????????#######??????????????????????? | | ?# #######??????#!!! "#??????????????????????? | | ?# ] #""##?????# "#??????????????????????? | | ?## #?????# "#??????????????????????? | | ??##" ##???## "g##???????????##????????? | | ??#"" #####" @;#??????????? """?????? | | ??#### ##" " # #??????????" """#????? | | ?????## # #;#???????????"" ?????? | | ??????#"## # ##?????????#"" ?????? | | ??????####### ##?????????#"" "#????? | | ????????????### ####???????? ""?????? | | ??????########" ?????" "??????? | | ??????# !!""""" # ?????# #??????? | | ??????#! # # ??### ###?#### | | ??????#! "## ###X# #"###""" | | ??????#! !*#### """""" | | ??????# !""""""###??##" "" """ | | ??????##########?????## " " | | ???????????????????????##; | | ????????????????????????? ## | | ????????????????????????? ??## | | ?????????????????????????????# | | ??????????????????????????????##" | | ???????????????????????????????#"" | | ??????????????????????????????##" | | ??????????????????????????????#"" ""# | | ??????????????????????????????#""" """## | | ??????????????????????????????""" """##? | | ??????????????????????????????""" ""#?? | | ?????????????????????????????#"" #### | +----------------------------------------------------+ Best States ------------- Heat Dissipation 56 Energy Generation 12 Energy Capacity 265 Matter Stores 300 Matter Capacity 300 Sight Range 16 Terrain Scan Density 10 Armor Coverage 300 Evasion (%) 40 Melee Accuracy 5 Recoil Reduction 2 Item Schematics ----------------- None Robot Schematics ------------------ None Fabricated ------------ Nothing Alien Tech Used ----------------- None Achievements -------------- None Challenges ------------ None Game ------ Seed NeutrinoLegExoskeleton Manual? 0 Play Time 00:23:04 Cumulative 234.0 hours Start 2021.09.25 @ 20:59:53 End 2021.09.25 @ 21:18:58 Sessions 1 Manual Loads 0 Difficulty Rogue Special Mode None Game No. 303 Rogue 216 Adventurer 87 Explorer 0 Win Type - Total 5 Types 3/0/1/1/0/0/0/0/0 Lore% 71 Gallery% 79 Achievement% 67 Wizard Run 0 Options --------- ASCII 0 Keyboard 1 Movement Numpad Keybinds 0 Fullscreen 1 Font 18/Smallcaps Map View 76x50 Tactical HUD 1 Map Filters NONE Filters NONE Steam 1 RUN: 91216940-c814-488b-8db3-44ce38a8ab74